[Event "FIDE World Rapid Chess Championship 2021"]
[White "Harsha, Bharathakoti"]
[Black "Chigaev, Maksim"]
[WhiteFideId "5078776"]
[BlackFideId "4108116"]
[WhiteElo "2484"]
[BlackElo "2605"]
[Result "0-1"]
[Round "13"]
[TimeControl "900+10"]
[Date "2021.12.28"]
[WhiteClock "0:02:08"]
[BlackClock "0:06:06"]

1. d4 {[%clk 0:15:00]}  Nf6 {[%clk 0:15:00]} 2. Nf3 {[%clk 0:15:00]}  g6 {[%clk 0:15:00]} 3. g3 {[%clk 0:15:19]}  Bg7 {[%clk 0:16:09]} 4. Bg2 {[%clk 0:15:19]}  O-O {[%clk 0:16:09]} 5. O-O {[%clk 0:15:19]}  d6 {[%clk 0:16:09]} 6. b3 {[%clk 0:15:19]}  e5 {[%clk 0:16:09]} 7. dxe5 {[%clk 0:15:19]}  dxe5 {[%clk 0:16:09]} 8. Ba3 {[%clk 0:15:19]}  e4 {[%clk 0:16:09]} 9. Nd4 {[%clk 0:12:19]}  e3 {[%clk 0:16:17]} 10. f3 {[%clk 0:10:12]}  Re8 {[%clk 0:15:53]} 11. c3 {[%clk 0:10:12]}  Nd5 {[%clk 0:15:53]} 12. Bb2 {[%clk 0:07:44]}  Nc6 {[%clk 0:15:53]} 13. Nxc6 {[%clk 0:07:44]}  bxc6 {[%clk 0:15:53]} 14. Qc1 {[%clk 0:07:44]}  Qf6 {[%clk 0:15:53]} 15. Na3 {[%clk 0:09:09]}  h5 {[%clk 0:12:34]} 16. Rb1 {[%clk 0:09:09]}  Bf5 {[%clk 0:12:34]} 17. c4 {[%clk 0:07:26]}  Nc3 {[%clk 0:11:54]} 18. Bxc3 {[%clk 0:07:26]}  Qxc3 {[%clk 0:11:54]} 19. Qxc3 {[%clk 0:07:26]}  Bxc3 {[%clk 0:11:54]} 20. Rbd1 {[%clk 0:07:26]}  Bb2 {[%clk 0:12:19]} 21. Nb1 {[%clk 0:05:10]}  Rad8 {[%clk 0:12:19]} 22. f4 {[%clk 0:05:10]}  c5 {[%clk 0:10:32]} 23. Bc6 {[%clk 0:04:42]}  Rxd1 {[%clk 0:08:32]} 24. Rxd1 {[%clk 0:04:06]}  Re6 {[%clk 0:08:32]} 25. Bf3 {[%clk 0:04:06]}  Ra6 {[%clk 0:08:32]} 26. a3 {[%clk 0:03:18]}  Rd6 {[%clk 0:07:08]} 27. Re1 {[%clk 0:03:18]}  a5 {[%clk 0:07:08]} 28. Kg2 {[%clk 0:03:18]}  Rb6 {[%clk 0:06:06]} 29. h3 {[%clk 0:02:08]}  Rxb3 {[%clk 0:06:06]} 30. g4 {[%clk 0:02:08]}  hxg4 {[%clk 0:06:06]} 31. hxg4 {[%clk 0:02:08]}  Bc2 {[%clk 0:06:06]} 0-1


[Site "http://www.Chess.com"]

[Event "FIDE World Rapid Chess Championship 2021"]
[White "Gareyev, Timur"]
[Black "Martirosyan, Haik M."]
[WhiteFideId "14200937"]
[BlackFideId "13306553"]
[WhiteElo "2578"]
[BlackElo "2377"]
[Result "0-1"]
[Round "13"]
[TimeControl "900+10"]
[Date "2021.12.28"]
[WhiteClock "0:00:55"]
[BlackClock "0:02:27"]

1. d4 {[%clk 0:15:00]}  Nf6 {[%clk 0:15:00]} 2. c4 {[%clk 0:15:42]}  e6 {[%clk 0:15:31]} 3. Nc3 {[%clk 0:15:42]}  Bb4 {[%clk 0:15:31]} 4. Qc2 {[%clk 0:15:42]}  O-O {[%clk 0:15:31]} 5. a3 {[%clk 0:15:42]}  Bxc3+ {[%clk 0:15:31]} 6. Qxc3 {[%clk 0:15:42]}  b6 {[%clk 0:15:31]} 7. Bg5 {[%clk 0:15:42]}  Bb7 {[%clk 0:15:31]} 8. e3 {[%clk 0:15:42]}  d6 {[%clk 0:15:31]} 9. Nf3 {[%clk 0:15:42]}  h6 {[%clk 0:15:31]} 10. Bh4 {[%clk 0:14:21]}  g5 {[%clk 0:15:20]} 11. Bg3 {[%clk 0:14:21]}  Ne4 {[%clk 0:15:20]} 12. Qc2 {[%clk 0:14:21]}  Nd7 {[%clk 0:15:20]} 13. Nd2 {[%clk 0:14:21]}  Nxg3 {[%clk 0:15:20]} 14. hxg3 {[%clk 0:14:21]}  Kg7 {[%clk 0:15:20]} 15. O-O-O {[%clk 0:14:05]}  f5 {[%clk 0:13:53]} 16. Kb1 {[%clk 0:14:05]}  Nf6 {[%clk 0:13:44]} 17. f3 {[%clk 0:11:53]}  Qe7 {[%clk 0:13:44]} 18. Bd3 {[%clk 0:11:53]}  c5 {[%clk 0:13:44]} 19. Rhe1 {[%clk 0:11:47]}  Rae8 {[%clk 0:11:40]} 20. Qc3 {[%clk 0:10:49]}  Kg8 {[%clk 0:09:41]} 21. dxc5 {[%clk 0:10:49]}  bxc5 {[%clk 0:09:15]} 22. e4 {[%clk 0:09:12]}  fxe4 {[%clk 0:09:15]} 23. Nxe4 {[%clk 0:09:12]}  Bxe4 {[%clk 0:08:00]} 24. Bxe4 {[%clk 0:09:28]}  e5 {[%clk 0:08:00]} 25. Bc2 {[%clk 0:09:35]}  Rd8 {[%clk 0:04:06]} 26. g4 {[%clk 0:09:35]}  Kg7 {[%clk 0:04:06]} 27. Rd2 {[%clk 0:09:35]}  Rh8 {[%clk 0:04:06]} 28. g3 {[%clk 0:08:43]}  h5 {[%clk 0:02:36]} 29. Qe3 {[%clk 0:08:43]}  Kf7 {[%clk 0:02:36]} 30. Qxg5 {[%clk 0:08:43]}  Rdg8 {[%clk 0:02:36]} 31. Qf5 {[%clk 0:08:01]}  hxg4 {[%clk 0:01:58]} 32. fxg4 {[%clk 0:08:01]}  Qe6 {[%clk 0:01:58]} 33. Qf1 {[%clk 0:08:01]}  Kg7 {[%clk 0:01:58]} 34. Bf5 {[%clk 0:07:09]}  Qe7 {[%clk 0:01:30]} 35. Qd3 {[%clk 0:07:09]}  Rd8 {[%clk 0:01:30]} 36. Rf1 {[%clk 0:07:09]}  Nh7 {[%clk 0:01:30]} 37. Bxh7 {[%clk 0:07:09]}  Rxh7 {[%clk 0:01:30]} 38. Rf5 {[%clk 0:07:09]}  Rh6 {[%clk 0:01:30]} 39. Rdf2 {[%clk 0:07:09]}  Rg6 {[%clk 0:01:09]} 40. Qf3 {[%clk 0:04:58]}  Qe6 {[%clk 0:01:09]} 41. Rf8 {[%clk 0:04:58]}  Rd7 {[%clk 0:01:09]} 42. Rh2 {[%clk 0:03:06]}  Rh6 {[%clk 0:00:59]} 43. Rxh6 {[%clk 0:03:06]}  Qxh6 {[%clk 0:00:59]} 44. Rf5 {[%clk 0:03:06]}  Qg6 {[%clk 0:00:59]} 45. Ka2 {[%clk 0:03:06]}  a5 {[%clk 0:00:59]} 46. Qe3 {[%clk 0:03:06]}  Qe6 {[%clk 0:00:59]} 47. Qg5+ {[%clk 0:03:06]}  Kh7 {[%clk 0:00:59]} 48. Qh5+ {[%clk 0:02:43]}  Kg8 {[%clk 0:00:21]} 49. b3 {[%clk 0:02:43]}  a4 {[%clk 0:00:21]} 50. Qg5+ {[%clk 0:02:43]}  Rg7 {[%clk 0:00:21]} 51. Qd8+ {[%clk 0:02:43]}  Kh7 {[%clk 0:00:21]} 52. Qh4+ {[%clk 0:00:42]}  Kg8 {[%clk 0:00:22]} 53. Qd8+ {[%clk 0:00:42]}  Kh7 {[%clk 0:00:22]} 54. Rh5+ {[%clk 0:00:42]}  Kg6 {[%clk 0:00:22]} 55. Rf5 {[%clk 0:00:42]}  e4 {[%clk 0:00:22]} 56. Rg5+ {[%clk 0:00:42]}  Kh7 {[%clk 0:00:22]} 57. Rh5+ {[%clk 0:00:42]}  Kg6 {[%clk 0:00:22]} 58. Qg5+ {[%clk 0:00:42]}  Kf7 {[%clk 0:00:22]} 59. Qf4+ {[%clk 0:00:42]}  Ke7 {[%clk 0:00:22]} 60. Rh6 {[%clk 0:00:42]}  Qe5 {[%clk 0:00:22]} 61. Qxe5+ {[%clk 0:00:42]}  dxe5 {[%clk 0:00:22]} 62. bxa4 {[%clk 0:00:19]}  e3 {[%clk 0:01:06]} 63. Rh2 {[%clk 0:00:19]}  Rxg4 {[%clk 0:01:06]} 64. Kb3 {[%clk 0:00:19]}  Rxg3 {[%clk 0:01:06]} 65. Re2 {[%clk 0:00:19]}  Ke6 {[%clk 0:01:06]} 66. a5 {[%clk 0:00:19]}  Kf5 {[%clk 0:01:06]} 67. a6 {[%clk 0:00:19]}  Ke4 {[%clk 0:01:06]} 68. Kc3 {[%clk 0:00:19]}  Rg6 {[%clk 0:01:06]} 69. Rh2 {[%clk 0:00:19]}  Rxa6 {[%clk 0:01:06]} 70. Rh4+ {[%clk 0:00:19]}  Kf3 {[%clk 0:01:06]} 71. Rh3+ {[%clk 0:00:19]}  Kg4 {[%clk 0:01:06]} 72. Rh1 {[%clk 0:00:19]}  Rxa3+ {[%clk 0:01:06]} 73. Kb2 {[%clk 0:00:19]}  Rd3 {[%clk 0:01:06]} 74. Kc2 {[%clk 0:00:19]}  Rd2+ {[%clk 0:01:06]} 75. Kc3 {[%clk 0:00:19]}  Rd4 {[%clk 0:01:06]} 76. Re1 {[%clk 0:00:55]}  Kf3 {[%clk 0:02:27]} 77. Rf1+ {[%clk 0:00:55]}  Kg2 {[%clk 0:02:27]} 78. Rf5 {[%clk 0:00:55]}  e2 {[%clk 0:02:27]} 79. Rxe5 {[%clk 0:00:55]}  Kf2 {[%clk 0:02:27]} 80. Rf5+ {[%clk 0:00:55]}  Ke3 {[%clk 0:02:27]} 81. Re5+ {[%clk 0:00:55]}  Re4 {[%clk 0:02:27]} 82. Rxe4+ {[%clk 0:00:55]}  Kxe4 {[%clk 0:02:27]} 0-1


[Site "http://www.Chess.com"]

[Event "FIDE World Rapid Chess Championship 2021"]
[White "Wojtaszek, Radoslaw"]
[Black "Dudin, Gleb"]
[WhiteFideId "1118358"]
[BlackFideId "34184934"]
[WhiteElo "2743"]
[BlackElo "2247"]
[Result "1-0"]
[Round "13"]
[TimeControl "900+10"]
[Date "2021.12.28"]
[WhiteClock "0:04:22"]
[BlackClock "0:00:16"]

1. c4 {[%clk 0:15:00]}  c6 {[%clk 0:15:00]} 2. Nf3 {[%clk 0:15:00]}  Nf6 {[%clk 0:15:00]} 3. Qc2 {[%clk 0:15:00]}  d5 {[%clk 0:15:15]} 4. e3 {[%clk 0:15:47]}  e6 {[%clk 0:15:15]} 5. b3 {[%clk 0:15:47]}  Bd6 {[%clk 0:15:15]} 6. Bb2 {[%clk 0:15:47]}  O-O {[%clk 0:15:15]} 7. d4 {[%clk 0:15:47]}  Ne4 {[%clk 0:15:15]} 8. Bd3 {[%clk 0:15:47]}  f5 {[%clk 0:14:02]} 9. O-O {[%clk 0:14:36]}  Qe7 {[%clk 0:14:02]} 10. Nbd2 {[%clk 0:14:36]}  Bd7 {[%clk 0:12:53]} 11. Ne5 {[%clk 0:13:57]}  Be8 {[%clk 0:12:53]} 12. f3 {[%clk 0:13:57]}  Nxd2 {[%clk 0:12:53]} 13. Qxd2 {[%clk 0:13:57]}  Nd7 {[%clk 0:12:53]} 14. Rac1 {[%clk 0:14:14]}  Rd8 {[%clk 0:10:51]} 15. Qf2 {[%clk 0:12:43]}  Nxe5 {[%clk 0:08:37]} 16. dxe5 {[%clk 0:12:17]}  Bc7 {[%clk 0:08:37]} 17. c5 {[%clk 0:12:25]}  b5 {[%clk 0:05:05]} 18. a4 {[%clk 0:11:04]}  bxa4 {[%clk 0:03:06]} 19. bxa4 {[%clk 0:11:04]}  g5 {[%clk 0:01:52]} 20. Bd4 {[%clk 0:09:40]}  Rb8 {[%clk 0:01:52]} 21. Rb1 {[%clk 0:09:40]}  Bd7 {[%clk 0:01:52]} 22. Qc2 {[%clk 0:09:45]}  Qg7 {[%clk 0:01:12]} 23. f4 {[%clk 0:09:45]}  g4 {[%clk 0:01:12]} 24. a5 {[%clk 0:09:45]}  Qe7 {[%clk 0:01:12]} 25. a6 {[%clk 0:09:45]}  Rxb1 {[%clk 0:00:37]} 26. Rxb1 {[%clk 0:07:08]}  Rb8 {[%clk 0:00:37]} 27. Rxb8+ {[%clk 0:07:08]}  Bxb8 {[%clk 0:00:37]} 28. Qb3 {[%clk 0:07:08]}  Qd8 {[%clk 0:00:37]} 29. Bc3 {[%clk 0:07:08]}  Kf7 {[%clk 0:00:37]} 30. Qb7 {[%clk 0:07:08]}  Ke7 {[%clk 0:00:37]} 31. Kf2 {[%clk 0:07:08]}  Qc7 {[%clk 0:00:10]} 32. Kg3 {[%clk 0:06:29]}  Bc8 {[%clk 0:00:10]} 33. Qb2 {[%clk 0:06:29]}  Kf7 {[%clk 0:00:10]} 34. h3 {[%clk 0:06:29]}  h5 {[%clk 0:00:10]} 35. Qb1 {[%clk 0:04:22]}  Kg8 {[%clk 0:00:16]} 36. Kf2 {[%clk 0:04:22]}  Bd7 {[%clk 0:00:16]} 37. hxg4 {[%clk 0:04:22]}  hxg4 {[%clk 0:00:16]} 38. Qh1 {[%clk 0:04:22]}  Qd8 {[%clk 0:00:16]} 39. Bxf5 {[%clk 0:04:22]}  d4 {[%clk 0:00:16]} 40. Qh7+ {[%clk 0:04:22]}  Kf8 {[%clk 0:00:16]} 41. Qh8+ {[%clk 0:04:22]} 1-0


[Site "http://www.Chess.com"]

[Event "FIDE World Rapid Chess Championship 2021"]
[White "Piorun, Kacper"]
[Black "Mamedov, Rauf"]
[WhiteFideId "1130420"]
[BlackFideId "13401653"]
[WhiteElo "2547"]
[BlackElo "2690"]
[Result "1-0"]
[Round "13"]
[TimeControl "900+10"]
[Date "2021.12.28"]
[WhiteClock "0:00:14"]
[BlackClock "0:01:27"]

1. e4 {[%clk 0:15:00]}  c5 {[%clk 0:15:00]} 2. Nf3 {[%clk 0:15:00]}  Nc6 {[%clk 0:15:00]} 3. d4 {[%clk 0:15:00]}  cxd4 {[%clk 0:16:31]} 4. Nxd4 {[%clk 0:16:33]}  Nf6 {[%clk 0:16:31]} 5. Nc3 {[%clk 0:16:33]}  e5 {[%clk 0:16:31]} 6. Ndb5 {[%clk 0:16:33]}  d6 {[%clk 0:16:31]} 7. Bg5 {[%clk 0:16:33]}  a6 {[%clk 0:16:31]} 8. Na3 {[%clk 0:16:33]}  b5 {[%clk 0:16:31]} 9. Nd5 {[%clk 0:16:33]}  Be7 {[%clk 0:16:31]} 10. Bxf6 {[%clk 0:16:33]}  Bxf6 {[%clk 0:16:31]} 11. c3 {[%clk 0:16:33]}  Rb8 {[%clk 0:16:31]} 12. Nc2 {[%clk 0:16:33]}  Bg5 {[%clk 0:16:31]} 13. a3 {[%clk 0:16:33]}  O-O {[%clk 0:16:31]} 14. h4 {[%clk 0:16:33]}  Bh6 {[%clk 0:16:31]} 15. g4 {[%clk 0:16:33]}  Bf4 {[%clk 0:16:31]} 16. Qf3 {[%clk 0:16:33]}  Be6 {[%clk 0:16:31]} 17. Nxf4 {[%clk 0:16:33]}  Qf6 {[%clk 0:16:31]} 18. g5 {[%clk 0:15:20]}  Qxf4 {[%clk 0:16:15]} 19. Qxf4 {[%clk 0:15:20]}  exf4 {[%clk 0:16:15]} 20. Nb4 {[%clk 0:15:20]}  Rb6 {[%clk 0:16:28]} 21. Nxc6 {[%clk 0:13:27]}  Rxc6 {[%clk 0:13:22]} 22. Rd1 {[%clk 0:13:27]}  Re8 {[%clk 0:13:22]} 23. Rd4 {[%clk 0:13:27]}  h6 {[%clk 0:13:10]} 24. Kd2 {[%clk 0:11:23]}  Kf8 {[%clk 0:13:10]} 25. gxh6 {[%clk 0:11:23]}  gxh6 {[%clk 0:13:10]} 26. Be2 {[%clk 0:10:19]}  Ke7 {[%clk 0:12:02]} 27. h5 {[%clk 0:10:19]}  Kf6 {[%clk 0:12:02]} 28. a4 {[%clk 0:10:19]}  Bc4 {[%clk 0:11:41]} 29. axb5 {[%clk 0:08:12]}  axb5 {[%clk 0:09:09]} 30. Rh4 {[%clk 0:08:12]}  Ke5 {[%clk 0:09:18]} 31. Bxc4 {[%clk 0:06:19]}  bxc4 {[%clk 0:05:50]} 32. Rd5+ {[%clk 0:06:19]}  Kxe4 {[%clk 0:05:50]} 33. Rd4+ {[%clk 0:06:19]}  Ke5 {[%clk 0:05:50]} 34. Rhxf4 {[%clk 0:06:19]}  d5 {[%clk 0:05:50]} 35. Rxf7 {[%clk 0:06:19]}  Rb6 {[%clk 0:05:50]} 36. Kc1 {[%clk 0:04:23]}  Ra8 {[%clk 0:06:24]} 37. f4+ {[%clk 0:03:32]}  Ke6 {[%clk 0:04:29]} 38. Rh7 {[%clk 0:03:32]}  Kf5 {[%clk 0:04:29]} 39. Rxd5+ {[%clk 0:03:32]}  Kg4 {[%clk 0:04:29]} 40. Rg7+ {[%clk 0:03:32]}  Kf3 {[%clk 0:04:29]} 41. Kb1 {[%clk 0:03:32]}  Re6 {[%clk 0:04:29]} 42. Rc7 {[%clk 0:02:07]}  Re4 {[%clk 0:04:23]} 43. f5 {[%clk 0:02:07]}  Ra6 {[%clk 0:04:23]} 44. Rd1 {[%clk 0:01:17]}  Rb6 {[%clk 0:02:58]} 45. Rcd7 {[%clk 0:01:17]}  Re8 {[%clk 0:02:58]} 46. Kc2 {[%clk 0:00:28]}  Reb8 {[%clk 0:01:28]} 47. Rb1 {[%clk 0:00:28]}  Rb5 {[%clk 0:01:28]} 48. Rd4 {[%clk 0:00:28]}  Re8 {[%clk 0:01:28]} 49. Rf1+ {[%clk 0:00:28]}  Kg2 {[%clk 0:01:28]} 50. Rff4 {[%clk 0:00:28]}  Kg3 {[%clk 0:01:28]} 51. Rg4+ {[%clk 0:00:28]}  Kf3 {[%clk 0:01:28]} 52. Rdf4+ {[%clk 0:00:14]}  Ke3 {[%clk 0:01:27]} 53. Rxc4 {[%clk 0:00:14]}  Rxf5 {[%clk 0:01:27]} 54. Rg3+ {[%clk 0:00:14]}  Kf2 {[%clk 0:01:27]} 55. Rh3 {[%clk 0:00:14]}  Kg2 {[%clk 0:01:27]} 56. Rhh4 {[%clk 0:00:14]}  Kg3 {[%clk 0:01:27]} 57. Rcg4+ {[%clk 0:00:14]}  Kf3 {[%clk 0:01:27]} 58. b4 {[%clk 0:00:14]} 1-0


[Site "http://www.Chess.com"]

[Event "FIDE World Rapid Chess Championship 2021"]
[White "Vidit, Santosh Gujrathi"]
[Black "Moroni, Luca Jr"]
[WhiteFideId "5029465"]
[BlackFideId "865834"]
[WhiteElo "2629"]
[BlackElo "2519"]
[Result "1-0"]
[Round "13"]
[TimeControl "900+10"]
[Date "2021.12.28"]
[WhiteClock "0:02:04"]
[BlackClock "0:02:40"]

1. d4 {[%clk 0:15:00]}  g6 {[%clk 0:15:00]} 2. e4 {[%clk 0:15:00]}  Bg7 {[%clk 0:15:00]} 3. Nc3 {[%clk 0:15:00]}  a6 {[%clk 0:15:00]} 4. Be3 {[%clk 0:15:32]}  b5 {[%clk 0:15:55]} 5. Qd2 {[%clk 0:15:32]}  Bb7 {[%clk 0:15:55]} 6. f3 {[%clk 0:15:32]}  d6 {[%clk 0:15:55]} 7. a4 {[%clk 0:15:32]}  b4 {[%clk 0:15:55]} 8. Nd1 {[%clk 0:15:32]}  a5 {[%clk 0:15:55]} 9. c3 {[%clk 0:15:32]}  bxc3 {[%clk 0:15:55]} 10. bxc3 {[%clk 0:15:32]}  Nf6 {[%clk 0:15:55]} 11. Bb5+ {[%clk 0:15:32]}  c6 {[%clk 0:15:55]} 12. Bd3 {[%clk 0:15:32]}  O-O {[%clk 0:15:55]} 13. Ne2 {[%clk 0:15:07]}  Nbd7 {[%clk 0:15:15]} 14. O-O {[%clk 0:15:07]}  e5 {[%clk 0:15:15]} 15. Rb1 {[%clk 0:15:07]}  Qc7 {[%clk 0:15:15]} 16. Bh6 {[%clk 0:15:07]}  d5 {[%clk 0:15:11]} 17. Bxg7 {[%clk 0:14:21]}  Kxg7 {[%clk 0:15:11]} 18. Ne3 {[%clk 0:14:21]}  h6 {[%clk 0:13:57]} 19. Ng3 {[%clk 0:13:37]}  Kh7 {[%clk 0:13:57]} 20. Kh1 {[%clk 0:12:36]}  Ba6 {[%clk 0:11:03]} 21. Bxa6 {[%clk 0:07:23]}  Rxa6 {[%clk 0:09:29]} 22. Rbe1 {[%clk 0:07:23]}  Rd8 {[%clk 0:09:38]} 23. Ng4 {[%clk 0:04:57]}  Nxg4 {[%clk 0:09:38]} 24. fxg4 {[%clk 0:04:57]}  Rf8 {[%clk 0:09:38]} 25. Rf3 {[%clk 0:04:57]}  Rb6 {[%clk 0:09:38]} 26. Ref1 {[%clk 0:04:23]}  f6 {[%clk 0:06:13]} 27. h4 {[%clk 0:04:23]}  Qb8 {[%clk 0:06:13]} 28. h5 {[%clk 0:04:23]}  Qe8 {[%clk 0:05:42]} 29. Qc2 {[%clk 0:02:58]}  exd4 {[%clk 0:05:10]} 30. cxd4 {[%clk 0:01:53]}  dxe4 {[%clk 0:05:10]} 31. Nxe4 {[%clk 0:01:53]}  c5 {[%clk 0:05:10]} 32. dxc5 {[%clk 0:01:53]}  Rb4 {[%clk 0:05:10]} 33. Nd6 {[%clk 0:01:53]}  Qe7 {[%clk 0:05:10]} 34. hxg6+ {[%clk 0:01:53]}  Kg8 {[%clk 0:02:40]} 35. Qa2+ {[%clk 0:02:04]} 1-0


[Site "http://www.Chess.com"]

[Event "FIDE World Rapid Chess Championship 2021"]
[White "Mastrovasilis, Dimitrios"]
[Black "Dreev, Aleksey"]
[WhiteFideId "4202694"]
[BlackFideId "4100107"]
[WhiteElo "2534"]
[BlackElo "2621"]
[Result "1-0"]
[Round "13"]
[TimeControl "900+10"]
[Date "2021.12.28"]
[WhiteClock "0:01:02"]
[BlackClock "0:00:00"]

1. e4 {[%clk 0:15:00]}  c6 {[%clk 0:15:00]} 2. d4 {[%clk 0:15:00]}  d5 {[%clk 0:15:00]} 3. Nd2 {[%clk 0:15:00]}  dxe4 {[%clk 0:15:00]} 4. Nxe4 {[%clk 0:15:00]}  Nf6 {[%clk 0:15:00]} 5. Nxf6+ {[%clk 0:15:00]}  exf6 {[%clk 0:16:09]} 6. c3 {[%clk 0:16:00]}  Bd6 {[%clk 0:16:09]} 7. Bd3 {[%clk 0:16:00]}  O-O {[%clk 0:16:09]} 8. Ne2 {[%clk 0:16:00]}  Re8 {[%clk 0:16:09]} 9. O-O {[%clk 0:16:00]}  Qc7 {[%clk 0:16:09]} 10. Ng3 {[%clk 0:16:00]}  Nd7 {[%clk 0:16:09]} 11. Nf5 {[%clk 0:14:38]}  Nf8 {[%clk 0:15:12]} 12. Nxd6 {[%clk 0:14:38]}  Qxd6 {[%clk 0:15:12]} 13. Qf3 {[%clk 0:14:38]}  Ng6 {[%clk 0:15:12]} 14. Bd2 {[%clk 0:13:03]}  Be6 {[%clk 0:14:48]} 15. Rfe1 {[%clk 0:13:03]}  Rad8 {[%clk 0:14:48]} 16. Bf1 {[%clk 0:13:03]}  Qc7 {[%clk 0:14:52]} 17. Qg3 {[%clk 0:11:42]}  Qa5 {[%clk 0:14:52]} 18. a4 {[%clk 0:11:42]}  h5 {[%clk 0:13:09]} 19. h3 {[%clk 0:10:34]}  Qd5 {[%clk 0:09:13]} 20. b4 {[%clk 0:08:08]}  h4 {[%clk 0:07:54]} 21. Qe3 {[%clk 0:08:08]}  Re7 {[%clk 0:07:39]} 22. c4 {[%clk 0:06:49]}  Qd6 {[%clk 0:03:36]} 23. Qc3 {[%clk 0:06:49]}  Red7 {[%clk 0:03:36]} 24. Be3 {[%clk 0:05:05]}  f5 {[%clk 0:02:01]} 25. f3 {[%clk 0:05:05]}  Qg3 {[%clk 0:02:01]} 26. Bf2 {[%clk 0:05:05]}  Qg5 {[%clk 0:02:01]} 27. Kh2 {[%clk 0:05:05]}  Nf4 {[%clk 0:02:01]} 28. Rad1 {[%clk 0:05:05]}  f6 {[%clk 0:02:26]} 29. Qc1 {[%clk 0:03:27]}  Bf7 {[%clk 0:02:26]} 30. b5 {[%clk 0:03:27]}  Ne6 {[%clk 0:01:38]} 31. Qxg5 {[%clk 0:02:09]}  fxg5 {[%clk 0:01:38]} 32. d5 {[%clk 0:02:09]}  cxd5 {[%clk 0:01:38]} 33. cxd5 {[%clk 0:02:09]}  Rxd5 {[%clk 0:00:00]} 34. Rxd5 {[%clk 0:01:02]}  Rxd5 {[%clk 0:00:00]} 35. Bc4 {[%clk 0:01:02]}  Rd2 {[%clk 0:00:00]} 36. Rxe6 {[%clk 0:01:02]}  Kh7 {[%clk 0:00:00]} 37. Re2 {[%clk 0:01:02]} 1-0


[Site "http://www.Chess.com"]

[Event "FIDE World Rapid Chess Championship 2021"]
[White "Demidov, Mikhail"]
[Black "Amin, Bassem"]
[WhiteFideId "4197143"]
[BlackFideId "10601457"]
[WhiteElo "2544"]
[BlackElo "2614"]
[Result "0-1"]
[Round "13"]
[TimeControl "900+10"]
[Date "2021.12.28"]
[WhiteClock "0:03:33"]
[BlackClock "0:07:36"]

1. d4 {[%clk 0:15:00]}  Nf6 {[%clk 0:15:00]} 2. Nc3 {[%clk 0:15:00]}  d5 {[%clk 0:15:00]} 3. Bf4 {[%clk 0:15:00]}  e6 {[%clk 0:14:54]} 4. Nb5 {[%clk 0:15:53]}  Na6 {[%clk 0:14:54]} 5. e3 {[%clk 0:15:53]}  Bb4+ {[%clk 0:14:54]} 6. c3 {[%clk 0:15:53]}  Be7 {[%clk 0:14:54]} 7. c4 {[%clk 0:14:46]}  c6 {[%clk 0:13:47]} 8. Nc3 {[%clk 0:14:46]}  O-O {[%clk 0:13:47]} 9. Nf3 {[%clk 0:14:54]}  c5 {[%clk 0:13:12]} 10. dxc5 {[%clk 0:14:54]}  Nxc5 {[%clk 0:12:15]} 11. Be2 {[%clk 0:11:11]}  Nfe4 {[%clk 0:12:15]} 12. cxd5 {[%clk 0:11:11]}  Nxc3 {[%clk 0:12:15]} 13. bxc3 {[%clk 0:11:11]}  exd5 {[%clk 0:12:15]} 14. O-O {[%clk 0:10:05]}  Bf5 {[%clk 0:11:29]} 15. Nd4 {[%clk 0:10:02]}  Bg6 {[%clk 0:11:29]} 16. c4 {[%clk 0:10:02]}  dxc4 {[%clk 0:11:29]} 17. Bxc4 {[%clk 0:10:02]}  Rc8 {[%clk 0:11:29]} 18. Qe2 {[%clk 0:10:02]}  a6 {[%clk 0:11:29]} 19. Rfd1 {[%clk 0:10:02]}  Qa5 {[%clk 0:11:29]} 20. Nb3 {[%clk 0:10:02]}  Qa3 {[%clk 0:11:29]} 21. h4 {[%clk 0:10:02]}  Ne4 {[%clk 0:11:29]} 22. Rac1 {[%clk 0:10:02]}  b5 {[%clk 0:11:29]} 23. h5 {[%clk 0:10:02]}  bxc4 {[%clk 0:11:29]} 24. hxg6 {[%clk 0:10:02]}  hxg6 {[%clk 0:11:29]} 25. Rxc4 {[%clk 0:10:02]}  Nc3 {[%clk 0:11:29]} 26. Rxc3 {[%clk 0:10:02]}  Rxc3 {[%clk 0:11:29]} 27. Rd7 {[%clk 0:10:02]}  Rd8 {[%clk 0:07:36]} 28. Bd6 {[%clk 0:03:33]}  Rc1+ {[%clk 0:07:36]} 0-1


[Site "http://www.Chess.com"]

[Event "FIDE World Rapid Chess Championship 2021"]
[White "Puranik, Abhimanyu"]
[Black "Alonso Rosell, Alvar"]
[WhiteFideId "5061245"]
[BlackFideId "2270544"]
[WhiteElo "2472"]
[BlackElo "2571"]
[Result "1-0"]
[Round "13"]
[TimeControl "900+10"]
[Date "2021.12.28"]
[WhiteClock "0:03:33"]
[BlackClock "0:01:11"]

1. e4 {[%clk 0:15:00]}  e5 {[%clk 0:15:00]} 2. Nf3 {[%clk 0:15:00]}  Nc6 {[%clk 0:15:00]} 3. Bb5 {[%clk 0:15:00]}  a6 {[%clk 0:15:00]} 4. Ba4 {[%clk 0:15:00]}  Nf6 {[%clk 0:15:00]} 5. O-O {[%clk 0:15:00]}  d6 {[%clk 0:15:00]} 6. d4 {[%clk 0:15:50]}  b5 {[%clk 0:15:46]} 7. Bb3 {[%clk 0:15:50]}  Nxd4 {[%clk 0:15:46]} 8. Nxd4 {[%clk 0:15:50]}  exd4 {[%clk 0:15:46]} 9. c3 {[%clk 0:15:50]}  dxc3 {[%clk 0:15:46]} 10. e5 {[%clk 0:15:50]}  dxe5 {[%clk 0:14:48]} 11. Bxf7+ {[%clk 0:14:56]}  Ke7 {[%clk 0:14:48]} 12. Qb3 {[%clk 0:14:56]}  c5 {[%clk 0:14:48]} 13. Rd1 {[%clk 0:14:56]}  c4 {[%clk 0:07:44]} 14. Bxc4 {[%clk 0:12:52]}  Qc7 {[%clk 0:05:49]} 15. Bd3 {[%clk 0:12:52]}  cxb2 {[%clk 0:05:49]} 16. Qxb2 {[%clk 0:12:52]}  Kf7 {[%clk 0:05:04]} 17. Bg5 {[%clk 0:11:23]}  Bc5 {[%clk 0:05:04]} 18. Nc3 {[%clk 0:11:23]}  Bd4 {[%clk 0:05:04]} 19. Rac1 {[%clk 0:11:23]}  Bg4 {[%clk 0:04:21]} 20. Nxb5 {[%clk 0:09:54]}  Qb6 {[%clk 0:04:21]} 21. Qb3+ {[%clk 0:08:36]}  Be6 {[%clk 0:00:13]} 22. Bc4 {[%clk 0:08:36]}  Qxb5 {[%clk 0:00:13]} 23. Bxe6+ {[%clk 0:08:36]}  Kg6 {[%clk 0:00:13]} 24. Bf7+ {[%clk 0:04:57]}  Kxg5 {[%clk 0:01:51]} 25. Qg3+ {[%clk 0:04:57]}  Kf5 {[%clk 0:01:11]} 26. Qf3+ {[%clk 0:03:33]}  Kg5 {[%clk 0:01:11]} 27. Rxd4 {[%clk 0:03:33]}  h5 {[%clk 0:01:11]} 28. h4+ {[%clk 0:03:33]}  Kh6 {[%clk 0:01:11]} 29. Qf5 {[%clk 0:03:33]} 1-0


[Site "http://www.Chess.com"]